{"text_format":"1","workbook":"xlsx","n_sheets":6,"sheets":["Blank","Start","Key","Description","Glossary","Print_Version"],"not_rendered":{"charts":0,"images":12,"macros":1,"external_links":0,"defined_names":0,"comments":1,"pivot_tables":0},"unopened":[],"bounds":{"document_bytes":16777216,"sheet_cells":100000,"rows_first":2000,"rows_last":500,"rows_between":2000,"halvings":0,"cell_chars":16384,"cell_head_chars":4096},"cells_cut":0,"cells_raw":0,"read":"whole","date_system":"1900"}

{"sheet":"Blank","index":0,"n_rows":340,"n_cols":23,"rows_kept":340,"cut":false,"hidden":true,"merged":[[286,0,286,8],[319,0,319,8],[205,0,205,8],[186,0,186,8],[0,0,0,22],[2,0,2,8],[33,0,33,8],[102,0,102,8],[159,0,159,8]]}
["Home Buyers Checklist - KFW Housing"]
[]
["General information"]
[]
["What type is the regarding household?"]
[]
[null,null,"House",null,null,null,null,null,"Apartment"]
[]
["Where is the regarding household located?"]
[]
["How big is the living area?",null,null,null,null,null,null,null,null,null,null,null,"m²"]
[]
["How old is the household?"]
[]
[null,null,"< 1 year",null,null,null,null,null,"1 to 5 years",null,null,null,null,null,"5 to 10 years"]
[]
[null,null,"10 to 20 years",null,null,null,null,null,"20 to 30 years",null,null,null,null,null,"30 to 50 years"]
[]
[null,null,"Other:",null,null,null,null,null,"years"]
[]
["How many persons live in the household?",null,null,null,null,null,null,null,null,null,null,null,null,null,null,"Persons"]
[]
["How many weeks of the year, the home remains unused?",null,null,null,null,null,null,null,null,null,null,null,null,null,null,null,null,null,null,"weeks per year"]
[]
["Have any energy efficiency improvements been made? Please check the relevant boxes."]
[]
[null,null,"Windows",null,null,null,null,null,"Doors",null,null,null,null,null,"Heating"]
[]
[null,null,"Air Conditioning",null,null,null,null,null,"Ligthing",null,null,null,null,null,"Insulation"]
[]
[null,null,"Other:"]
[]
[]
["Heating"]
[]
["What type of heat source is used?"]
[]
[null,null,"Gas boiler",null,null,null,null,null,null,null,null,"Age of the boiler:",null,null,null,null,null,null,null,null,null,"years"]
[]
[null,null,null,null,null,"Condensing boiler (Effeciency ratio over 93 %)"]
[]
[null,null,null,null,null,"Near condensing boiler (Effeciency ratio 90 to 93 %)"]
[]
[null,null,null,null,null,"Non condensing boiler (Effeciency ratio below 87 %)"]
[]
[null,null,null,null,null,"Do not know the type"]
[]
[null,null,"Oil boiler",null,null,null,null,null,null,null,null,"Age of the boiler:",null,null,null,null,null,null,null,null,null,"years"]
[]
[null,null,null,null,null,"Condensing boiler (Effeciency ratio over 93 %)"]
[]
[null,null,null,null,null,"Near condensing boiler (Effeciency ratio 90 to 93 %)"]
[]
[null,null,null,null,null,"Non condensing boiler (Effeciency ratio below 87 %)"]
[]
[null,null,null,null,null,"Do not know the type"]
[]
[null,null,"Biomass boiler",null,null,null,null,null,null,null,null,"Age of the boiler:",null,null,null,null,null,null,null,null,null,"years"]
[]
[null,null,null,null,null,"Condensing boiler (Effeciency ratio over 93 %)"]
[]
[null,null,null,null,null,"Near condensing boiler (Effeciency ratio 90 to 93 %)"]
[]
[null,null,null,null,null,"Non condensing boiler (Effeciency ratio below 87 %)"]
[]
[null,null,null,null,null,"Do not know the type"]
[]
[null,null,"Heat pump",null,null,null,null,null,null,null,null,"Age of the heat pump:",null,null,null,null,null,null,null,null,null,"years"]
[]
[null,null,null,null,null,"Air/Water (Usage of air the external air via an external unit)"]
[]
[null,null,null,null,null,"Brine/Water (Usage of geothermal energy via earth collector / earth probe)"]
[]
[null,null,null,null,null,"Water/Water (Usage of ground water via well)"]
[]
[null,null,"District heating"]
[]
[null,null,"Solar thermal"]
[]
[null,null,"Other:"]
[]
["How is the control of the heating system realised?"]
[]
[null,null,"Programmable thermostat",null,null,null,null,null,null,null,null,null,null,null,"Manual valves"]
[]
[null,null,"Thermostatic valves"]
[]
["Are the pipes of the heating system insulated?"]
[]
[null,null,"Completely",null,null,null,null,null,null,null,null,null,null,null,"Partly"]
[]
[null,null,"No"]
[]
["How many circulating pumps are used by the heating system?",null,null,null,null,null,null,null,null,null,null,null,null,null,null,null,null,null,null,null,"pumps"]
[]
["How old are the circulating pumps of the heating system?"]
[]
[null,null,"< 1 year",null,null,null,null,null,"1 to 5 years",null,null,null,null,null,"5 to 10 years"]
[]
[null,null,"10 to 20 years",null,null,null,null,null,"20 to 30 years",null,null,null,null,null,"Other:",null,null,null,null,null,"years"]
[]
[]
["Domestic hot water (DHW)"]
[]
["Is the heat source for DHW the same as for heating?"]
[]
[null,null,"Yes",null,null,null,null,null,null,null,null,null,null,null,"No"]
[]
["If you checked \"No\" above: What type of heat source is used for DHW?"]
[]
[null,null,"Gas boiler",null,null,null,null,null,null,null,null,"Age of the boiler:",null,null,null,null,null,null,null,null,null,"years"]
[]
[null,null,null,null,null,"Condensing boiler (Effeciency ratio over 93 %)"]
[]
[null,null,null,null,null,"Near condensing boiler (Effeciency ratio 90 to 93 %)"]
[]
[null,null,null,null,null,"Non condensing boiler (Effeciency ratio below 87 %)"]
[]
[null,null,null,null,null,"Do not know the type"]
[]
[null,null,"Oil boiler",null,null,null,null,null,null,null,null,"Age of the boiler:",null,null,null,null,null,null,null,null,null,"years"]
[]
[null,null,null,null,null,"Condensing boiler (Effeciency ratio over 93 %)"]
[]
[null,null,null,null,null,"Near condensing boiler (Effeciency ratio 90 to 93 %)"]
[]
[null,null,null,null,null,"Non condensing boiler (Effeciency ratio below 87 %)"]
[]
[null,null,null,null,null,"Do not know the type"]
[]
[null,null,"Biomass boiler",null,null,null,null,null,null,null,null,"Age of the boiler:",null,null,null,null,null,null,null,null,null,"years"]
[]
[null,null,null,null,null,"Condensing boiler (Effeciency ratio over 93 %)"]
[]
[null,null,null,null,null,"Near condensing boiler (Effeciency ratio 90 to 93 %)"]
[]
[null,null,null,null,null,"Non condensing boiler (Effeciency ratio below 87 %)"]
[]
[null,null,null,null,null,"Do not know the type"]
[]
[null,null,"Heat pump",null,null,null,null,null,null,null,null,"Age of the heat pump:",null,null,null,null,null,null,null,null,null,"years"]
[]
[null,null,null,null,null,"Air/Water (Usage of air the external air via an external unit)"]
[]
[null,null,null,null,null,"Brine/Water (Usage of geothermal energy via earth collector / earth probe)"]
[]
[null,null,null,null,null,"Water/Water (Usage of ground water via well)"]
[]
[null,null,"Gas flow heater",null,null,null,null,null,null,null,null,"Age of the heater:",null,null,null,null,null,null,null,null,null,"years"]
[]
[null,null,"Electrical flow heater",null,null,null,null,null,null,null,null,"Age of the heater:",null,null,null,null,null,null,null,null,null,"years"]
[]
[null,null,"District heating"]
[]
[null,null,"Solar thermal"]
[]
[null,null,"Other:"]
[]
[]
["Renewable energy technologies"]
[]
["Is solar thermal energy used?"]
[]
[null,null,"Yes",null,null,null,null,null,null,null,null,null,null,null,"No"]
[]
["If you checked \"Yes\" above: What type of collector is used?"]
[]
[null,null,"Flat collector",null,null,null,null,null,null,null,null,null,null,null,"Tube collector"]
[]
[null,null,"Swimming pool absorbers"]
[]
["If you checked \"Yes\" above: How big is the surface of the collectors?",null,null,null,null,null,null,null,null,null,null,null,null,null,null,null,null,null,null,null,null,null,"m²"]
[]
["Is photovoltaics used?"]
[]
[null,null,"Yes",null,null,null,null,null,null,null,null,null,null,null,"No"]
[]
["If you checked \"Yes\" above: How is the energy from the PV-system used?"]
[]
[null,null,"Own use",null,null,null,null,null,null,null,null,null,null,null,"Grid feed"]
[]
[null,null,"Overflow feed"]
[]
["If you checked \"Yes\" above: How big is the surface of the collectors?",null,null,null,null,null,null,null,null,null,null,null,null,null,null,null,null,null,null,null,null,null,"m²"]
[]
[]
["Lighting"]
[]
["What type of lamps are used?"]
[]
[null,null,"Light bulbs",null,null,null,null,null,null,null,null,null,null,null,"Halogen lamps"]
[]
[null,null,"LED",null,null,null,null,null,null,null,null,null,null,null,"Other:"]
[]
["How many lamps are installed?",null,null,null,null,null,null,null,null,null,null,null,null,"lamps"]
[]
["How much is the power of one lamp?",null,null,null,null,null,null,null,null,null,null,null,null,null,"Watts"]
[]
["How is the control of the lighting realised?"]
[]
[null,null,"Presence sensors",null,null,null,null,null,null,null,null,null,null,null,"Manual switches"]
[]
[null,null,"Other:"]
[]
[]
["Household appliances"]
[]
["Which of these household appliances are used in the home? (Do also name their age, quantitiy and types as requested)"]
[]
[null,null,"Fridge",null,null,null,null,null,null,null,null,"Age of the appliance:",null,null,null,null,null,null,null,null,null,"years"]
[]
[null,null,null,null,null,null,null,null,null,null,null,"Number of applicances:"]
[]
[null,null,null,null,null,"Small fridge (under 200 liter)"]
[]
[null,null,null,null,null,"Big fridge (over 200 liter)"]
[]
[null,null,"Freezer",null,null,null,null,null,null,null,null,"Age of the appliance:",null,null,null,null,null,null,null,null,null,"years"]
[]
[null,null,null,null,null,null,null,null,null,null,null,"Number of applicances:"]
[]
[null,null,null,null,null,"Small freezer (under 200 liter)"]
[]
[null,null,null,null,null,"Big freezer (over 200 liter)"]
[]
[null,null,"Fridge-freezer",null,null,null,null,null,null,null,null,"Age of the appliance:",null,null,null,null,null,null,null,null,null,"years"]
[]
[null,null,null,null,null,null,null,null,null,null,null,"Number of applicances:"]
[]
[null,null,null,null,null,"Small fridge-freezer (under 200 liter)"]
[]
[null,null,null,null,null,"Big fridge-freezer (over 200 liter)"]
[]
[null,null,"Cooling unit",null,null,null,null,null,null,null,null,"Age of the appliance:",null,null,null,null,null,null,null,null,null,"years"]
[]
[null,null,null,null,null,null,null,null,null,null,null,"Number of applicances:"]
[]
[null,null,null,null,null,"Monoblock unit (exhaust hose through open window or door)"]
[]
[null,null,null,null,null,"Split-unit (internal and external unit)"]
[]
[null,null,"Washing machine",null,null,null,null,null,null,null,null,"Age of the appliance:",null,null,null,null,null,null,null,null,null,"years"]
[]
[null,null,null,null,null,null,null,null,null,null,null,"Number of applicances:"]
[]
[null,null,"Dryer",null,null,null,null,null,null,null,null,"Age of the appliance:",null,null,null,null,null,null,null,null,null,"years"]
[]
[null,null,null,null,null,null,null,null,null,null,null,"Number of applicances:"]
[]
[null,null,null,null,null,"Gas"]
[]
[null,null,null,null,null,"Electrical"]
[]
[null,null,"Oven",null,null,null,null,null,null,null,null,"Age of the appliance:",null,null,null,null,null,null,null,null,null,"years"]
[]
[null,null,null,null,null,null,null,null,null,null,null,"Number of applicances:"]
[]
[null,null,null,null,null,"Gas"]
[]
[null,null,null,null,null,"Electrical"]
[]
[null,null,"TV",null,null,null,null,null,null,null,null,"Age of the appliance:",null,null,null,null,null,null,null,null,null,"years"]
[]
[null,null,null,null,null,null,null,null,null,null,null,"Number of applicances:"]
[]
[null,null,null,null,null,"Tube"]
[]
[null,null,null,null,null,"LCD"]
[]
[null,null,null,null,null,"LED"]
[]
[null,null,null,null,null,"Other:"]
[]
[null,null,"Entertainment electronics",null,null,null,null,null,null,null,null,"Age of the appliance:",null,null,null,null,null,null,null,null,null,"years"]
[]
[null,null,null,null,null,null,null,null,null,null,null,"Number of applicances:"]
[]
[null,null,null,null,null,"VCR"]
[]
[null,null,null,null,null,"DVD/Bluray-Player"]
[]
[null,null,null,null,null,"Game consol"]
[]
[null,null,null,null,null,"Other:"]
[]
[]
["Windows and external doors"]
[]
["Are the windowframes sealed and free of air leakage? (Check with your hand if any air comes in, when the window is closed)"]
[]
[null,null,"Yes",null,null,null,null,null,null,null,null,null,null,null,"No"]
[]
["Are the external doorframes sealed and free of air leakage? (Check with your hand if any air comes in, when the door is closed)"]
[]
[null,null,"Yes",null,null,null,null,null,null,null,null,null,null,null,"No"]
[]
["Are doubleglazing windows installed? (Can you see two layers of glass in one window frame?)"]
[]
[null,null,"Yes",null,null,null,null,null,null,null,null,null,null,null,"No"]
[]
["Are the window frames of good quality? "]
[]
[null,null,"Yes",null,null,null,null,null,null,null,null,null,null,null,"No"]
[]
["What material are the window frames made of?"]
[]
[null,null,"Wood",null,null,null,null,null,null,null,null,null,null,null,"PVC"]
[]
[null,null,"Other:"]
[]
["Please insert the R-value/R-factor of the used windows. (Ask your home inspector or look into the data sheet of the windows.) "]
[]
[null,null,null,null,null,null,"[W/m²K]"]
[]
["Please insert the R-value/R-factor of the used external doors. (Ask your home inspector or look into the data sheet of the doors.) "]
[]
[null,null,null,null,null,null,"[W/m²K]"]
[]
[]
["Insulation"]
[]
["Is there any thermal insulation on the external walls of the building? (Ask your home inspector.)"]
[]
[null,null,"Yes",null,null,null,null,null,null,null,null,null,null,null,"No"]
[]
["How thick is the thermal insulation on the external walls of the building? (Ask your home inspector.)"]
[]
[null,null,null,null,null,null,"[cm]"]
[]
["Please insert the R-value/R-factor of the external wall insulation. (Ask your home inspector or look into the data sheet of the insulation.) "]
[]
[null,null,null,null,null,null,"[W/m²K]"]
[]
["Are there proper amounts of insulation in the roof and attic? (Ask your home inspector.)"]
[]
[null,null,"Yes",null,null,null,null,null,null,null,null,null,null,null,"No"]
[]
["Please insert the R-value/R-factor of the roof/attic. (Ask your home inspector or look into the data sheet of the insulation.) "]
[]
[null,null,null,null,null,null,"[W/m²K]"]

{"sheet":"Start","index":1,"n_rows":7,"n_cols":1,"rows_kept":7,"cut":false,"hidden":false,"merged":[]}
["ԱԶԳԱՅԻՆ ՀԻՓՈԹԵՔԱՅԻՆ ԸՆԿԵՐՈՒԹՅՈՒՆ"]
[]
["ԲՆԱԿԱՐԱՆԱՅԻՆ ՖԻՆԱՆՍԱՎՈՐՄԱՆ ԾՐԱԳԻՐ, ՉՈՐՐՈՐԴ ՓՈՒԼ"]
[]
["ԿԱՌՈՒՑՎՈՂ ԱՌԱՆՁՆԱՏԱՆ ԷԱ ԳՆԱՀԱՏՄԱՆ ՀԱՐՑԱԹԵՐԹԻԿ (ԷԱ ԱՌԱՆՁՆԱՏԱՆ ԿԱՌՈՒՑՄԱՆ ՎԱՐԿԱՏԵՍԱԿ)"]
[]
["ՈՒՇԱԴՐՈՒԹՅՈՒՆ. ԱՇԽԱՏԱՆՔԸ ՍԿՍԵԼՈՒ ԱՌԱՋ ՀԱՎԱՍՏՎԵՔ, ՈՐ ԷՔՍԵԼ-ի ՄԱԿՐՈՍ ՖՈՒՆԿՑԻԱՆ ԹՈՒՅԼԱՏՐՎԱԾ Է !!!"]

{"sheet":"Key","index":2,"n_rows":200,"n_cols":29,"rows_kept":200,"cut":false,"hidden":false,"merged":[[74,0,75,18],[79,0,79,18],[88,14,88,16],[98,15,98,16],[198,0,199,13],[198,14,199,18],[100,0,100,18],[107,0,107,18],[148,0,148,18],[157,16,157,18],[162,1,162,3],[164,0,164,18],[178,1,178,4],[196,1,196,4],[11,6,11,16],[13,0,13,18],[18,8,18,11],[20,15,20,16],[22,0,22,18],[14,8,14,18],[16,9,16,17],[9,6,9,16],[0,0,0,18],[1,0,1,18],[3,6,3,16],[5,6,5,16],[7,6,7,16]]}
["Կառուցվող առանձնատան ԷԱ գնահատման հարցաթերթիկ"]
["Անձնական տեղեկություններ"]
[]
["Դիմորդի անուն, ազգանուն"]
[]
["Բնակության/գրանցման հասցե"]
[]
["Քաղաք/բնակավայր"]
[]
["Էլ փոստի հասցե"]
[]
["Հեռախոս"]
[]
["Ընդհանուր տեղեկություններ կառուցվող գույքի վերաբերյալ",null,null,null,null,null,null,null,null,null,null,null,null,null,null,null,null,null,null,null,null,null,"Minimum",null,null,null,null,null,"Maximum"]
["Անշարժ գույքի հասցեն"]
[]
["Անշարժ գույքի գտնվելու վայրւը (քաղաք/բնակավայր)"]
[]
["Անշարժ գույքի ընդհանուր մակերեսը",null,null,null,null,null,null,null,null,null,null,null,"մ²"]
[]
["Այն անձանց քանակը, որոնք պետք բնակվեն կառուցվող առանձնատանը",null,null,null,null,null,null,null,null,null,null,null,null,null,null,null,null,"հոգի"]
[]
["Բաժին 1. Ջեռուցում և տաք ջրամատակարարում",null,null,null,null,null,null,null,null,null,null,null,null,null,null,null,null,null,null,null,null,null,-3,null,0,{"$f":"IF(V26=1,2,0)","v":0},2,null,4]
["Արդյոք ջեռուցման և տաք ջրամատակարարման համար օգտագործվելու է նույն համակարգը?"]
[]
[]
["Ջեռուցման համակարգի ինչպիսի տիպ է օգտագործվելու?"]
["(Եթե օգտգործվելու են տարբեր տիպի համակարգեր, նշեք դրանք)"]
[]
[]
[null,null,null,null,null,null,null,null,null,null,null,null,null,null,null,null,null,null,null,null,null,1,null,null,-1,{"$f":"IF(V30=TRUE,IF(V31=1,1,IF(V31=2,0,IF(V31=3,-1,IF(V31=4,0,0)))))","v":false},1]
[]
[]
[]
[]
[]
[]
[]
[null,null,null,null,null,null,null,null,null,null,null,null,null,null,null,null,null,null,null,null,null,null,null,null,-2,{"$f":"IF(V39=TRUE,IF(V40=1,1,IF(V40=2,-1,IF(V40=3,-2,IF(V40=4,0,0)))))","v":false},1]
[]
[null,null,null,3]
[]
[]
[]
[]
[]
[null,null,null,null,null,null,null,null,null,null,null,null,null,null,null,null,null,null,null,null,null,null,null,null,-1,{"$f":"IF(V47=TRUE,IF(V48=1,1,IF(V48=2,0,IF(V48=3,-1,IF(V48=4,0,0)))))","v":false},1]
[]
[]
[]
[]
[]
[]
[]
[null,null,null,null,null,null,null,null,null,null,null,null,null,null,null,null,null,null,null,null,null,null,null,null,null,{"$f":"IF(V55=TRUE,0,0)","v":0}]
[]
[null,null,null,null,null,null,null,null,null,null,null,null,null,null,null,null,null,null,null,null,null,null,null,null,0,{"$f":"IF(V57=TRUE,IF(V58=1,1,IF(V58=2,2,IF(V58=3,2,IF(V58=4,1,0)))))","v":false},2]
[]
[]
[]
[]
[]
[]
[]
[null,null,null,null,null,null,null,null,null,null,null,null,null,null,null,null,null,null,null,null,null,null,null,null,0,{"$f":"IF(V65=TRUE,1,0)","v":0},1]
[]
[null,null,null,null,null,null,null,null,null,null,null,null,null,null,null,null,null,null,null,null,null,null,null,null,0,{"$f":"IF(V67=TRUE,2,0)","v":0},2]
[]
[null,null,null,null,null,null,null,null,null,null,null,null,null,null,null,null,null,null,null,null,null,null,null,null,0,{"$f":"IF(V69=TRUE,0,0)","v":0},0]
[]
[]
[]
[null,null,null,null,null,null,null,null,null,null,null,null,null,null,null,null,null,null,null,null,null,null,-1,null,null,{"$f":"IF(V73=1,1,IF(V73=2,0,IF(V73=3,-1,0)))","v":0},null,null,1]
[]
["Ջեռուցման համակարգի խողովակները ջերմամեկուսացվելու են  (չջեռուցվող սենյակներում)? (Սինթեթիկ կամ ալյումինապատ մեկուսիչներ?)"]
[]
[]
[null,null,null,null,null,null,null,null,null,null,null,null,null,null,null,null,null,null,null,null,null,null,-2,null,null,{"$f":"IF(V78=1,1,IF(V78=2,-2,IF(V78=3,0,0)))","v":0},null,null,1]
[]
["Բաժին 2. Վերականգնվող էներգիայի տեխնոլոգիաների օգտագործում"]
["Արևային ջրատաքացուցիչներ տեղադրվելու են?"]
[]
[null,null,null,null,null,null,null,null,null,null,null,null,null,null,null,null,null,null,null,null,null,null,0,null,null,{"$f":"IF(V83=1,2,IF(V83=2,0,))","v":0},null,null,2]
[]
["Եթե ընտրել եք \"Այո\" ապա նշեք ինչ տիպի տաքացուցիչ են օգտագործվելու?"]
[null,null,null,null,null,null,null,null,null,null,null,null,null,null,null,null,null,null,null,null,null,null,0,null,null,{"$f":"IF(V83=2,0,IF(V86=1,3,IF(V86=2,3,IF(V86=3,0,0))))","v":0},null,null,3]
[]
[]
["Եթե ընտրել եք այո, նշեք  նախատեսվող կոլեկտորների ընդհանուր մակերեսը",null,null,null,null,null,null,null,null,null,null,null,null,null,null,null,null,"մ²"]
[]
["Արդյոք տեղադրվելու են ֆոտովոլտաիկ պանելներ?"]
[]
[null,null,null,null,null,null,null,null,null,null,null,null,null,null,null,null,null,null,null,null,null,null,0,null,null,{"$f":"IF(V93=1,5,IF(V93=2,0,))","v":0},null,null,5]
[]
["Եթե ընտրոլ եք \"Այո\" նշեք ինչպես է օգտագործվելու ֆոտովոլտաիկ պանելներից ստացված էներգիան"]
[]
[null,null,null,null,null,null,null,null,null,null,null,null,null,null,null,null,null,null,null,null,null,null,0,null,null,{"$f":"IF(V93=2,0,IF(V97=1,1,IF(V97=2,0,IF(V97=3,0,0))))","v":0},null,null,1]
[]
["Եթե ընտրել եք \"Այո\" նշեք կլանիչնեչի/պանելների նախատեսվող մակերեսը",null,null,null,null,null,null,null,null,null,null,null,null,null,null,null,null,"մ²"]
[]
["Բաժին 3. Լուսավորում"]
["Ինչպիսի լամպեր են օգտագործվում?"]
[]
[null,null,null,null,null,null,null,null,null,null,null,null,null,null,null,null,null,null,null,null,null,null,-1,null,null,{"$f":"IF(V104=1,0,IF(V104=2,1,IF(V104=3,2,IF(V104=4,0,0))))","v":0},null,null,2]
[]
[]
[]
["Բաժին 4. Կենցաղային սարքավորումներ"]
["Ներքոթվարկված սարքավորումներից որոնք է նախատեսված տեղադրել?"]
["(Նշեք նաև դրանց ԷԱ դասը)"]
[null,null,null,null,null,null,null,null,null,null,null,null,null,null,null,null,null,null,null,null,null,null,-1,null,null,{"$f":"IF(V146=TRUE,0,ROUND(IF(AB111>0,(SUM(Y112:Y143)/AB111),0),0))","v":0},null,{"$f":"COUNTIF(V112:V144,TRUE)","v":0},2]
[null,null,null,null,null,null,null,null,null,null,null,null,null,null,null,null,null,null,null,null,null,null,null,null,{"$f":"IF(V113=TRUE,IF(V112=1,3,IF(V112=2,2,IF(V112=3,1,0))),0)","v":0}]
[]
[]
[]
[]
[]
[null,null,null,null,null,null,null,null,null,null,null,null,null,null,null,null,null,null,null,null,null,null,null,null,{"$f":"IF(V119=TRUE,IF(V118=1,3,IF(V118=2,2,IF(V118=3,1,0))),0)","v":0}]
[]
[]
[]
[]
[null,null,null,null,null,null,null,null,null,null,null,null,null,null,null,null,null,null,null,null,null,null,null,null,{"$f":"IF(V124=TRUE,IF(V123=1,3,IF(V123=2,2,IF(V123=3,1,0))),0)","v":0}]
[]
[]
[]
[]
[null,null,null,null,null,null,null,null,null,null,null,null,null,null,null,null,null,null,null,null,null,null,null,null,{"$f":"IF(V129=TRUE,IF(V128=1,3,IF(V128=2,2,IF(V128=3,1,0))),0)","v":0}]
[]
[]
[]
[]
[null,null,null,null,null,null,null,null,null,null,null,null,null,null,null,null,null,null,null,null,null,null,null,null,{"$f":"IF(V134=TRUE,IF(V133=1,3,IF(V133=2,2,IF(V133=3,1,0))),0)","v":0}]
[]
[]
[]
[]
[null,null,null,null,null,null,null,null,null,null,null,null,null,null,null,null,null,null,null,null,null,null,null,null,{"$f":"IF(V139=TRUE,IF(V138=1,3,IF(V138=2,2,IF(V138=3,1,0))),0)","v":0}]
[]
[]
[]
[]
[null,null,null,null,null,null,null,null,null,null,null,null,null,null,null,null,null,null,null,null,null,null,null,null,{"$f":"IF(V144=TRUE,IF(V143=1,3,IF(V143=2,2,IF(V143=3,1,0))),0)","v":0}]
[]
[]
[]
[]
[]
["Բաժին 5. Պատուհաններ"]
["Արդյոք պլանավորվում է երկշերտ ապակիներով պատուհաններ տեղադրել?"]
[]
[null,null,null,null,null,null,null,null,null,null,null,null,null,null,null,null,null,null,null,null,null,null,0,null,null,{"$f":"IF(V152=1,1,IF(V152=2,0,))","v":0},null,null,1]
[]
["Ինչ նյութից են լինելու պատուհանների շրջանակները?"]
[]
[null,null,null,null,null,null,null,null,null,null,null,null,null,null,null,null,null,null,null,null,null,null,-1,null,null,{"$f":"IF(V156=1,-1,IF(V156=2,0,IF(V156=3,0,IF(V156=4,0,0))))","v":0},null,null,0]
[]
[]
[]
["Մուտքագրեք նախատեսվող պատուհանների ջերմափոխանցման U-արժեքը/U-գործակիցը "]
[]
[]
[null,null,null,null,"[Վ/մ²կ]",null,null,null,null,null,null,null,null,null,null,null,null,null,null,null,null,null,0,null,null,{"$f":"IF(B163>0,IF(B163<=2,1,0),0)","v":0},null,null,1]
[]
["Բաժին 6. Շենքի արտաքին պատեր"]
["Ինչ նյութից են կառուցվելու շենքի արտաքին պատերը?"]
[null,null,null,null,null,null,null,null,null,null,null,null,null,null,null,null,null,null,null,null,null,null,0,null,null,{"$f":"IF(V167=1,0,IF(V167=2,2,IF(V167=3,0,IF(V167=4,1,0))))","v":0},null,null,2]
[]
[]
[]
["Արդյոք արտաքին պատերը ջերմամեկուսացվելու են?"]
[]
[]
[null,null,null,null,null,null,null,null,null,null,null,null,null,null,null,null,null,null,null,null,null,null,-3,null,null,{"$f":"IF(V174=1,0,IF(V174=2,-3,))","v":0},null,null,0]
[]
["Որքան է լինելու ջերմամեկուսացնող նյութի հաստությունը? "]
[]
[]
[null,null,null,null,null,"[սմ]",null,null,null,null,null,null,null,null,null,null,null,null,null,null,null,null,0,null,null,{"$f":"IF(AND(B179>=10,V178=FALSE,V174=1),2,0)","v":0},null,null,2]
[]
["Ինչպիսի ջերմամեկուսիչ նյութ է օգտագործվելու?"]
[]
[]
[]
[]
[]
[]
[]
["Արդյոք տանիքը և վերնահարկը ջերմամեկուսացվելու են?",null,null,null,null,null,null,null,null,null,null,null,null,null,null,null,null,null,null,null,null,null,-2,null,null,{"$f":"IF(V189=1,0,IF(V189=2,-2,))","v":0},null,null,0]
[]
[]
[]
[]
["Լրացրեք շենքի տանիքի և ձեղնահարկի ջերմամեկուսացման հաստությունը [սմ]: "]
[]
[]
[null,null,null,null,null,"[սմ]",null,null,null,null,null,null,null,null,null,null,null,null,null,null,null,null,0,null,null,{"$f":"IF(AND(B197>10,V197=FALSE,V189=1),2,0)","v":0},null,null,2]
[]
["Բնակարանը/առանձնատունը Էներգաարդյունավետ է?",null,null,null,null,null,null,null,null,null,null,null,null,null,{"$f":"IF(Z200>=10,\"ԱՅՈ\",\"ՈՉ\")","v":"ՈՉ"},null,null,null,null,null,null,null,null,null,null,null,null,"Maximale Punkte"]
[null,null,null,null,null,null,null,null,null,null,null,null,null,null,null,null,null,null,null,null,null,null,{"$f":"SUM(W17:W198)","v":-14},null,null,{"$f":"SUM(Z1:Z199)","v":0},null,null,{"$f":"SUM(AC17:AC198)","v":29}]

{"sheet":"Description","index":3,"n_rows":52,"n_cols":2,"rows_kept":52,"cut":false,"hidden":false,"merged":[[11,0,11,1],[13,0,13,1],[4,0,4,1],[7,0,7,1],[0,0,0,1],[1,0,1,1],[10,0,10,1]]}
["Կառուցվող առանձնատան ԷԱ գնահատման հարցաթերթիկ"]
["Բնակարանային ֆինանսավորման ծրագիր, 4-րդ փուլ"]
[]
["Հարցաթերթիկի նպատակը"]
["Սույն հարցաթերթիկի նպատակն է ստուգել, արդյոք Ծրագրի ֆինանսավորմամբ կառուցվող առանձնատունը բավարարելու է Ծրագրով սահմանված էներգաարդյունավետության չափանիշներին, թե ոչ: Հարցաթերթիկը չի լրացվում այն դեպքերում, երբ կառուցվող առանձնատան նախագծի ԷԱ դասը ըստ սահմանված կարգի գնահատվել է C+ և բարձր: Դրական արդյունքի դեպքում շինարարությունը կարող է ֆինանսավորվել ԷԱ առանձնատան կառուցման վարկի միջոցով: Հակառակ դեպքում, ֆինանսավորումը կարող է իրականացվել ավանդական բնակարանային վարկի միջոցով: Հարցաթերթիկը լրացվում է շինարարության ծախսերի նախահաշվի հիման վրա: Շինարարության ընթացքում և ավարտին պետք իրականացվի մոնիտորինգ, պարզելու, արդյոք նախատեսված աշխատանքները կատարվել են թե ոչ:"]
[]
["Աշխատանքի սկիզբ"]
["Հարցաթերթիկի լրացման համար սեղմեք \"Start Filling the Checklist\" կոճակը: Բացված պատուհանի համապատասխան դաշտերում լրացրեք ընդհանուր տեղեկություններ դիմորդի և ձեռք բերվող գույքի վերաբերյալ: Սեղմեք \"Reset\" կոճակը եթե լրացված տեղեկությունները սխալ են և պետք է ճշգրտվեն: \"Cancel\" կոճակը փակում է պատուհանը: Լրացված տեղեկությունները այս դեպքում չեն պահպանվում: Պահանջվող տեղեկությունները լրացնելուց հետո սեղմեք  \"Save\"կոճակը: Բացվող \"Save as\" պատուհանի մջոցով հիշեք ֆայլը և սկսեք լրացնել հարցաթեթիկը:  "]
[]
["Ընդհանուր ցուցում"]
["Եթե որևէ հարցի պատասխանը չի կարող հստակ տրվել, անհրաժեշտ է ընտրել “Չգիտեմ” պատասխանը: Հարցաշարը պետք է լրացվի ձեռք բերվող բնակարանի/առանձնատան առկա իրավիճակի հիման վրա: Կենցաղային սարքավորումներին վերաբերող հարցերը լրացվում են միայն այն դեպքում, երբ դրանք ևս վաճառվում են բնակարանի/առանձնատան հետ միասին: Եթե ձեռք բերման ֆինանսավորումից հետո պարզվի, որ հարցաթերթիկում ներկայացված պատասխանները չեն համապատասխանում իրականությանը, ապա տվյալ վարկը այլևս չի հանդիսանա Որակավորված վարկ:"]
["Եթե վերջին հինգ տարվա ընթացքում կատարվել են ԷԱ բարելավման աշխատանքներ, նշեք համապատասխան բարելավումները (Պատուհան, Ջեռուցման համակարգ, և այլն): Նշեք բոլոր այն աշխատանքները, որոնք կատարվել են: "]
[]
["Հարցաթերթիկի լրացման ուղղեցույց"]
["Բաժին 1. Ջեռուցում և տաք ջրամատակարարում"]
["Հարց","Ուղղեցույց"]
["Արդյոք ջեռուցման և տաք ջրի համար օգտագործվելու է նույն համակարգը?","Ընտրեք  “Այո” պատասխանը, եթե տան ջեռուցմումը և կենցաղային տաք ջուրը ստացվելու են ջեռուցման մեկ աղբյուրից: Եթե պատասխանը “Ոչ“ է և երկու տարբեր համակարգ է տեղադրվելու, ապա լրացրեք անհրաժեշտ տեղեկությունները առանձին համակարգերի վերաբերյալ:"]
["Ջեռուցման համակարգի ինչպիսի տիպ է տեղադրվելու?","Լրացրեք բնակարանում տեղադրվելիք ջեռուցման կաթսայի տիպը, տարիքը  և տեսակը: Եթե տեղադրվելու է մեկից ավելի տիպի կաթսա, ապա լրացրեք տեղեկություններ յուրաքանչյուրի համար: Տարիքը որոշելու համար ստուգեք կաթսայի վրա առկա պիտակը կամ տեխնիկական բնութագիրը: Պիտակն հիմնականում փակցված է լինում կաթսայի հետնամասում կամ կողքը: Եթե ցուցանակ առկա չէ, ապա կաթսայի տարիքը կարելի է գտնել համացանցից, արտադրողի և համապատասխան մոդելի տվյալների հիման վրա: Եթե դեռ չգիտեք ինչ տեսակի կաթսա է տեղադրվելու,  ընտրեք “Չգիտեմ” պատասխանը:"]
["Ինչպես է կառավարվելու ջեռուցման համակարգը?","Ընտրեք ջեռուցման համակարգի կառավարման տեսակը (տեսակները ներկայացված են Բառարանում, Glossary էջում): Եթե տարբեր կառավարման համակարգեր են օգտագործվելու, ապա ընտրեք այն, որը ավելի շատ է օգտագործվելու: "]
["Ջեռուցման համակարգի երևացող խողովակները ջերմամեկուսացվելու են  (չջեռուցվող սենյակներում)?","Կախված նախատեսվում է ջերմամեկուսացնել չջեռուցվող սենյակներով անցկացված ջեռուցման/տաք ջրի խողովակները թե ոչ ընտրեք համապատասխան պատասխանը:"]
[]
["Բաժին 2. Վերականգնվող էներգիայի տեխնոլոգիաների օգտագործում"]
["Հարց","Ուղղեցույց"]
["Արդյոք տաք ջրամատակարարման համար նախատեսվում է օգտագործել արևային էներգիա?","Ընտրեք Այո, եթե կառուցվող առանձնատանը  տեղադրվելու է արևային ջեռուցման և/կամ ջրի տաքացման համակարգ:"]
["Եթե ընտրել եք \"Այո\" ապա նշեք ինչ տիպի տաքացուցիչ/կոլեկտոր է տեղադրվելու?","Ընտրեք տեղադրվելիք արևային ջրատաքացուցիչի/կոլեկտորի տեսակը (տեսակները ներկայացված են Բառարանում, Glossary էջում): Եթե տարբեր արևային ջրատաքացուցիչներ են օգտագործվում, ապա ընտրեք ավելի շատ օգտագործվողը: "]
["Եթե ընտրել եք այո, նշեք  նախատեսվող կոլեկտորների ընդհանուր մակերեսը","Լրացրեք տեղադրվելիք ջրատաքացուցիչի/կոլեկտորի ընդհանուր մակերեսը ք.մ.:"]
["Արդյոք տեղադրվելու են ֆոտովոլտաիկ պանելներ?","Ընտրեք Այո, եթե արևային էներգիայից էլեկտրական էներգիա ստանալու համար տեղադրվելու են ֆոտովոլտաիկ պանելներ:"]
["Եթե ընտրոլ եք \"Այո\" նշեք ինչպես է օգտագործվելու ֆոտովոլտաիկ պանելներից ստացված էներգիան","Ընտրեք արտադրվելիք էլեկտրաէներգիայի օգտագործման տարբերակը: Սեփական կարիքներ` ամբողջ արտադրած էլ. Էներգիան օգտագործվում է ձեր տանը կամ կուտակվում մարտկոցների համակարգում: Առաքում էլ. ցանց` ամբողջ արտադրած էլեկտրաէներգիան առաքվում է Հայաստանի Էլեկտրական Ցանցերին: Ավելցուկի առաքում ` այն ժամանակահատվածում երբ էլեկտրաէներգիան սպառվում է տանը, արտադրած էլեկտրաէներգիան առաքվում է տուն: Եթե էլեկտրաէներգիան արտադրում է, և ներկա պահին չկա դրա պահանջ, առաքումը իրականացվում Հայաստանի Էլեկտրական Ցանցերին "]
["Եթե ընտրել եք \"Այո\" նշեք կլանիչնեչի/պանելների մակերեսը","Մուտքագրեք տեղադրվելիք բոլոր ֆոտովոլտաիկ կոլեկտորների ընդհանուր մակերեսը [մ²]"]
[]
["Բաժին 3. Լուսավորություն"]
["Հարց","Ուղղեցույց"]
["Ինչպիսի լամպեր են օգտագործվելու?","Մուտքագրեք ամենաշատ նախատեսվող լամպերի տեսակը: Եթե ներկա պահին չկա տեղադրված լուսավորության համակարգ ընտրեք “Այլ/չգիտեմ” տարբերակը:"]
[]
["Բաժին 4. Կենցաղային սարքավորումներ"]
["Հարց","Ուղղեցույց"]
["Ներքոթվարկված սարքավորումներից որոնք է նախատեսված տեղադրել? (Նշեք նաև դրանց ԷԱ դասը)","Մուտքագրեք այն կենցաղային սարքավորումները, որոնք տեղադրվելու են: Ի լրումն, մուտքագրեք համապատասխան սարքավորման էներգաարդյունավետության դասը: Եթե նույն տեսակի երկու տարբեր սարքավորումներ են տեղադրվելու, մուտքագրեք առավել արդյունավետ սարքավորման էներգաարդյունավետության դասը:"]
[]
["Բաժին 5. Պատուհաններ"]
["Հարց","Ուղղեցույց"]
["Արդյոք նախատեսվում է տեղադրել երկշերտ ապակիներ?","Ընտրեք Այո, եթե նախատեսվում երկշերտ կամ եռաշերտ ապսակիներով պատուհաններ է նախատեսվում տեղադրել:"]
["Ինչ շրջանակներ են ունենալու պատուհանները?","Նշեք նախատեսվող պատուհանների շրջանակների նյութը: Եթե դեռ պարզ չէլ, նշեք “Այլ” տարբերակը:"]
["Մուտքագրեք նախատեսվող պատուհանների ջերմափոխանցման U-արժեքը/U-գործակիցը ","U-արժեքը/U-գործակիցը բերված է պատուհանի տեխնիական բնութագրում: Տեխնիական բնութագրի բացակայության դեպքում, կարող եք հարցում ուղարկել արտադրողին: Եթե դեռ որոշված չէ, կամ տվյալների բացակայության դեպքում, ընտրեք “տվյալ չկա” վանդակը:ապա ընտրեք “Չգիտեմ” տարբերակը:"]
[]
["Բաժին 6. Շենքի արտաքին պատեր"]
["Հարց","Ուղղեցույց"]
["Ինչ նյութից են կառուցվելու շենքի արտաքին պատերը?","Նշեք արտաքին պատերի կառուցման համար նախատեսված հիմնական նյութը: "]
["Արդյոք արտաքին պատերը ջերմամեկուսացվելու են?","Եթե Այո, ընտրեք համապատասխան տարբերակը:"]
["Որքան է լինելու ջերմամեկուսացնող նյութի հաստությունը? ","Լրացրեք շենքի արտաքին պատերի ջերմամեկուսացման հաստությունը: Տվյալների բացակայության դեպքում, ընտրեք “տվյալ չկա” վանդակը:"]
["Ինչպիսի ջերմամեկուսիչ նյութ է օգտագործվելու?","Նշենք համապատասխան ջերմամեկուսիչ նյութը: Եթե օգտագործվելու է այլ ջերմամեկուսիչ նյութ ընտրեք“Այլ” տարբերակը:"]
["Արդյոք տանիքը և ձեղնահարկը ջերմամեկուսացվելու են?","Ընտրեք համապատասխան տարբերակը:"]
["Ինչ հաստություն է ունենալու տանիքի և վերնահարկի համար օգտագործվելիք ջերմամեկուսացնող նյութը? ","Լրացրեք շենքի տանիքի և ձեղնահարկի ջերմամեկուսացման հաստությունը [սմ]: Տվյալների բացակայության դեպքում, ընտրեք “տվյալ չկա” վանդակը:"]

{"sheet":"Glossary","index":4,"n_rows":89,"n_cols":1,"rows_kept":89,"cut":false,"hidden":false,"merged":[]}
["Ծրագրավորվող թերմոստատ"]
["Ծրագրավորվող թերմոստատները նախատեսված են ջերմաստիճանի կարգավորման համար համաձայն ծրագրավորված կարգավորումների, որոնք միանում են օրվա տարբեր ժամերին: Ծրագրավորվող թերմոստատները կարող են նաև կոչվել ժամային:"]
[]
[]
[]
[]
[]
[]
[]
[]
[]
[]
[]
["Թերմոստատիկ փականներ"]
["Ռադիատորիների թերմոստատիկ փականը (ՌԹՓ) ինքնակառավարվող փական է, որը տեղադրվում ջեռուցման համակարգի ռադիատորին և որի նպատակն է սենյակում ջերմաստիճանի կառավարումը` դեպի ռադիատոր տաք ջրի հոսքի փոփոխմամբ: Դասական ՌԹՓ-ն բաղկացած է փակիչից, որը ընդլայնվում է կամ նեղանում է կախված շրջակա միջավայրի ջերմաստիճանից։ Փակիչը միացված է գնդասեղին, որը իր հերթին միացված է փականին։ Փականը աստիճանաբար փակվում է շրջակա միջավայրի ջերմաստիճանի բարձրացմանը զուգահեռ՝ սահմանափակելով ռադիատոր մուտք գործող տաք ջրի քանակը։ Սա հնարավորություն է տալիս յուրաքանչյուր սենյակի համար դնել առավելագույն ջերմաստիճան։"]
[]
[]
[]
[]
[]
[]
[]
[]
[]
[]
[]
[]
[]
[]
["Հարթ կոլեկտոր"]
["Հարթ արևային կոլեկտորները բաղկացած են հարթ մուգ գույնի կլանիչից, թափանցիկ ծածկից, որը նվազեցնում է ջերմության կորուստները, միջանկյալ հեղուկից (օդ, ջուր կամ անտիֆրիզ), որը կլանիչից վերցնում է ջերմությունը և ջերմամեկուսացնող հետնամասից։ Կլանիչը բաղկացած է բարակ կլանիչ շերտից (կազմված ջերմակայուն պոլիմերներից, ալյումինից, պողպատից կամ պղինձից, որը պատվում է մուգ կամ ընտրովի ծածկույթով), որի հետևում դրվում է ցանց կամ խողովակավոր գալար դրված ջերմամեկուսացված պատյանի մեջ ապակե կամ պոլիկարբոնատից ծածկով։ Ջրով աշխատող կոլեկտորներում, հեղուկը սովորաբար անցնում է խողովակների միջով՝ տեղափոխելով ջերմությունը կլանիչից դեպի ջերմամեկուսացված ջրի բաք։ Սա կարող է տեղի ունենալ ուղղակի կամ ջերմափոխանակիչի միջոցով։"]
[]
[]
[]
[]
[]
[]
[]
[]
[]
[]
["Խողովոկային կոլեկտոր"]
["Վակումային արևային ջրատաքացուցիչները բաղկացած են մի շարք ապակյա վակումային խողովակներից, որոնցից յուրաքանչյուրը կազմված է կլանիչ շերտից, որը կցված է արևային խողովակին։ Ջերմությունը փոխանցվում է միջանկյալ հեղուկին (ջուր կամ անտիֆրիզ, սովորաբար պրոպիլեն գլիկոլ), որը ուղղվում է դեպի  ջերմափոխանակիչ։ Ջերմափոխանակիչը ջերմամեկուսացված է և ծածկված է պաշտպանիչ շերտով մետաղական կամ պլաստիկ պատյանի մեջ։ "]
[]
[]
[]
[]
[]
[]
[]
[]
["Ջրավազանի արևային կլանիչներ"]
["Ջրավազանի արևային կլանիչները սովորաբար սև պլաստիկից շերտեր կամ խողովակներ են, որոնք օգտագործվում են լողավազանի ջրի տաքացման համար։ Ի տարբերություն հարթ արևային կոլեկտորների կամ վակումային կոլեկտորների, ջերմամեկուսացում և թափանցիկ ծածկեր հարկավոր չեն։ Ջերմաստիճանի կայութնության պահանջները շատ ավելի ցածր են քան արևային ջրատաքացուցիչներում, քանի որ առկա է համեմատաբար ցածր ջերմաստիճան։"]
[]
[]
[]
[]
[]
[]
[]
[]
[]
[]
["Լամպեր"]
["Շիկացման լամպի դեպքում էլեկտրական հոսանքը ճառագայթիչով անցնելիս պարույրը տաքացնում է բարձր ջերմաստիճանի, և լամպը տեսանելի լույս է արձակում։ Շիկացող մարմնի օքսիդացումը կանխելու համար ապակյա կամ կվարցային հիմքով անոթը լցվում է իներտ գազով կամ թթվածինը հեռացվում է։ Հալոգենային լամպի դեպքում շիկացող մարմնի գոլորշացումը կանխվում է քիմիական գործընթացի միջոցով, ինչը երկարացնում է լամպի ծառայության ժամկետը։ Լամպը էլեկտրական հոսանք է ստանում միջանցիկ մասնիկների կամ ապակու մեջ ներկառուցված լարերի միջոցով։ Լամպերի մեծ մասը օգտագործվում են վարդակներում, ինչը տալիս է մեխանիկական հենարան և էլեկտրական միացումներ։"]
[]
[]
[]
[]
[]
[]
[]
[]
[]
["Հալոգենային լամպեր"]
["Հալոգենային լամպերը, որոնք հայտնի են նաև որպես վոլֆրամ հալոգենային, կվարց-հալոգենային կամ կվարց-յոդային լամպեր, շիկացնման լամպեր են, որոնք պարունակում են փոքր քանակությամբ հալոգեն, օրինակ` յոդ կամ բրոմ: Հալոգենային գազերի և վոլֆրամային շիկացման թելի համակցությունը առաջացնում է հալոգենային ցիկլի քիմիական ռեակցիա , որի արդյունքում գոլորշիացած վոլֆրամը վերադարձվում է շիկացման լամպին, ինչի արդյունքում ավելանում է ծառայության ժամկետը և պահպանվում է լամպի պարզությունը: Հետևաբար, հալոգենային լամպերը կարող են շահագործվել բարձր ջերմաստիճանային պայմաններում և ունենալ ավելի բարձր լուսատվություն: Հալոգենային լամպերի փոքր չափերը թույլ են տալիս դրանց օգտագործումը կոմպակտ օպտիկական համակարգերում լուսարձակներում:"]
[]
[]
[]
[]
[]
[]
[]
[]
[]
[]
["ԼԵԴ լամպեր"]
["ԼԵԴ լամպերը իրենցից ներկայացնում են լուսային դիոդներ, որոնք ներկառուցված են լամպերի մեջ: ԼԵԴ լամպերի շահագործման ժամկետը մի քանի անգամ գերազանցում է շիկացման լամպերին, իսկ արդյունավետությունը զգալիորեն բարձր է ֆլորեսցենտ լամպերից: Ներկայումս որոշ արտադրողներ արտադրում են ԼԵԴ լամպեր 300 լյումեն/վտ լուսատվությամբ:"]
[" "]

{"sheet":"Print_Version","index":5,"n_rows":199,"n_cols":18,"rows_kept":199,"cut":false,"hidden":false,"merged":[[198,1,198,4],[102,11,102,13],[162,1,162,4],[164,0,164,18],[171,0,171,18],[179,1,179,4],[117,14,117,16],[134,9,134,12],[136,9,136,12],[138,9,138,12],[140,9,140,12],[142,9,142,12],[148,0,148,18],[119,0,119,18],[126,0,126,18],[130,9,130,12],[132,9,132,12],[91,0,91,18],[33,11,33,13],[43,11,43,13],[54,12,54,13],[64,12,64,14],[66,12,66,14],[68,3,68,18],[74,2,74,18],[86,0,87,18],[21,8,21,11],[23,15,23,16],[25,0,25,18],[11,6,11,18],[13,0,13,18],[15,7,15,17],[19,8,19,11],[9,6,9,18],[0,0,0,18],[1,0,1,18],[3,6,3,18],[5,6,5,18],[7,6,7,18]]}
["Ձեռք բերվող բնակարանի/տան ԷԱ գնահատման հարցաթերթիկ"]
["Անձնական տեղեկություններ"]
[]
["Դիմորդի անուն, ազգանուն"]
[]
["Բնակության/գրանցման հասցե"]
[]
["Քաղաք/բնակավայր"]
[]
["Էլ փոստի հասցե"]
[]
["Հեռախոս"]
[]
["Ընդհանուր տեղեկություններ կառուցվող գույքի վերաբերյալ"]
[]
["Անշարժ գույքի հասցեն"]
[]
["Անշարժ գույքի գտնվելու վայրւը (քաղաք/բնակավայր)"]
[]
["Անշարժ գույքի ընդհանուր մակերեսը",null,null,null,null,null,null,null,null,null,null,null,"ք. մ."]
[]
["Անշարժ գույքի կառուցման ժամկետը",null,null,null,null,null,null,null,null,null,null,null,"տարի"]
[]
["Այն անձանց քանակը, որոնք պետք բնակվեն կառուցվող առանձնատանը",null,null,null,null,null,null,null,null,null,null,null,null,null,null,null,null,"հոգի"]
[]
["Բաժին 1. Ջեռուցում և տաք ջրամատակարարում"]
["Արդյոք ջեռուցման և տաք ջրամատակարարման համար օգտագործվելու է նույն համակարգը?"]
[]
["1. Այո",null,null,null,null,null,null,"2. Ոչ"]
[]
["Ջեռուցման համակարգի ինչպիսի տիպ է օգտագործվելու?"]
["(Եթե օգտգործվելու են տարբեր տիպ համակարգեր, նշեք դրանք)"]
[]
["1. Գազի կաթսա",null,null,null,null," Այո"]
[]
[" - Կոնդենսացիոն կաթսա (ՕԳԳ 93%-ից բարձր)"]
[]
[" - Կոնդենսացիոնին մոտ կաթսա       (ՕԳԳ 90 - 93 %)"]
[]
[" - Ոչ կոնդենսացիոն կաթսա                (ՕԳԳ 87 %-ից ցածր)"]
[]
[" - Այլ/Չգիտեմ"]
[]
["2. Յուղային կաթսա",null,null,null,null," Այո"]
[]
[" - Կոնդենսացիոն կաթսա (ՕԳԳ 93%-ից բարձր)"]
[]
[" - Կոնդենսացիոնին մոտ կաթսա       (ՕԳԳ 90 - 93 %)"]
[]
[" - Ոչ կոնդենսացիոն կաթսա                (ՕԳԳ 87 %-ից ցածր)"]
[]
[" - Այլ/Չգիտեմ"]
[]
[]
["3. Գազային օդատաքացուցիչ",null,null,null,null,null," Այո"]
[]
[" - Կոնդենսացիոն օդատաքացուցիչ (ՕԳԳ 93%-ից բարձր)"]
[]
[" - Կոնդենսացիոնին մոտ օդատաքացուցիչ (ՕԳԳ 90 - 93 %)"]
[]
[" - Ոչ կոնդենսացիոն օդատաքացուցիչ (ՕԳԳ 87 %-ից ցածր)"]
[]
[" - Այլ/Չգիտեմ"]
[]
["4. Էլեկտրական օդատաքացուցիչ",null,null,null,null,null," Այո"]
[]
["5. Ջերմային պոմպ",null,null,null,null,null," Այո"]
[]
["Պոմպի տեսակը "]
[]
["6. Կենտրոնացված ջեռուցման համակարգ",null,null,null,null,null,null,null,null,null," Այո",null,null,null,null,null,"Ոչ"]
[]
["7. Արևային տաքացուցիչ",null,null,null,null,null,null,null,null,null," Այո",null,null,null,null,null,"Ոչ"]
[]
["8. Այլ"]
[]
[]
["Ինչպես է կառավարվելու ջեռուցման համակարգը?"]
[]
["1. Ծրագրավորվող թերմոստատ"]
[]
["2. Թերմոստատիկ փականներ"]
[]
["3. Հասարակ փականներ"]
[]
[]
["Ջեռուցման համակարգի խողովակները ջերմամեկուսացվելու են  (չջեռուցվող սենյակներում)? (Սինթեթիկ կամ ալյումինապատ մեկուսիչներ?)"]
[]
[]
["1. Ամբողջովին",null,null,null,null,null,"2. Ոչ",null,null,null,null,"3. Մասամբ/չգիտեմ"]
[]
["Բաժին 2. Վերականգնվող էներգիայի տեխնոլոգիաների օգտագործում"]
["Արևային ջրատաքացուցիչներ տեղադրվելու են?"]
[]
[null,null,"1. Այո",null,null,null,null,null,null,"2. Ոչ"]
[]
["Եթե Այո, ապա  ինչ տիպի տաքացուցիչ է օգտագործվելու"]
[]
["1. Հարթ կոլեկտոր",null,null,null,null,"2. Խողովակային կոլեկտոր",null,null,null,null,null,null,"3. Ջրավազանի կլանիչ"]
[]
[]
[]
["Նշեք  նախատեսվող կոլեկտորների ընդհանուր մակերեսը",null,null,null,null,null,null,null,null,null,null,null,null,null,"մ²"]
[]
[]
["Արդյոք տեղադրվելու են ֆոտովոլտաիկ պանելներ?"]
[]
[null,"1. Այո",null,null,null,null,null,null,"2. Ոչ"]
[]
["Եթե Այո, ապա ինչպես է օգտագործվելու ֆոտովոլտաիկ պանելներից ստացված էներգիան"]
[]
["1. Սեփական կարիքների համար"]
[]
["2. Ամբողջությամբ առաքվելուէ Էլ ցանցերին"]
[]
["3. Առաքվելու է ավելցուկը"]
[]
["Եթե ընտրել եք \"Այո\" նշեք կլանիչնեչի/պանելների նախատեսվող մակերեսը",null,null,null,null,null,null,null,null,null,null,null,null,null,null,null,null,"մ²"]
[]
["Բաժին 3. Լուսավորում"]
["Ինչպիսի լամպեր են օգտագործվելու?"]
[]
["Շիկացման լամպեր",null,null,null,null,null,null,null,"2. Հալոգեն լամպեր"]
[]
["3. LED լամպեր",null,null,null,null,null,null,null,"4. Այլ/Չգիտեմ"]
[]
["Բաժին 4. Կենցաղային սարքավորումներ"]
["Ներքոթվարկված սարքավորումներից որոնք են տեղադրվելու?"]
["(Նշեք նաև դրանց ԷԱ դասը)"]
[]
["1. Սառնարան",null,null,null,null,null,null,null,null,null,null,null,null,"ԷԱ Դասը"]
[]
["2. Սառեցման խցիկ",null,null,null,null,null,null,null,null,null,null,null,null,"ԷԱ Դասը"]
[]
["3. Սառնարան սառեցման խցիկով",null,null,null,null,null,null,null,null,null,null,null,null,"ԷԱ Դասը"]
[]
["4. Օդավորակիչ",null,null,null,null,null,null,null,null,null,null,null,null,"ԷԱ Դասը"]
[]
["5. Լվացքի մեքենա",null,null,null,null,null,null,null,null,null,null,null,null,"ԷԱ Դասը"]
[]
["6. Չորանոց",null,null,null,null,null,null,null,null,null,null,null,null,"ԷԱ Դասը"]
[]
["7. Վառարան",null,null,null,null,null,null,null,null,null,null,null,null,"ԷԱ Դասը"]
[]
["8. Կենցաղային սարքավորումներ չեն տեղադրվելու"]
[]
[]
[]
["Բաժին 5. Պատուհաններ"]
["Արդյոք պլանավորվում է երկշերտ ապակիներ տեղադրել?"]
[]
[null,null,"1. Այո",null,null,null,null,null,"2. Ոչ"]
[]
[]
["Ինչ նյութից են պատրաստվելու պատուհանների շրջանակները?"]
[]
[null,"1. Փայտ",null,null,null,"2. Պլաստիկ PVC",null,null,null,null,"3. Ալյումինե",null,null,null,null,"4. Այլ"]
[]
[]
["Որքան է լինելու նախատեսվող պատուհանների ջերմափոխանցման U-արժեքը/U-գործակիցը?"]
[]
[]
[null,null,null,null,null,"[Վ/մ²կ]",null,null,"Չգիտեմ"]
[]
["Բաժին 6. Շենքի արտաքին պատեր"]
["Ինչ նյութից են պատրաստվելու շենքի արտաքին պատերը?"]
[]
[null,"1. Միաձույլ բետոնե",null,null,null,null,null,null,null,null,"2. Քար (տուֆ, բազալտ)"]
[]
[null,"3. Բետոնե պանելներ",null,null,null,null,null,null,null,null,"4. Այլ/Չգիտեմ"]
[]
["Բաժին 7. Ջերմամեկուսացում"]
["Արդյոք արտաքին պատերը ջերմամեկուսացվելու են?"]
["(Հարցրեք կառուցապատողին)"]
[]
[null,null,"1. Այո",null,null,null,null,null,"2. Ոչ"]
[]
["Որքան է լինելու ջերմամեկուսացնող նյութի հաստությունը? "]
[]
[null,null,null,null,null,"[սմ]",null,null,"Չգիտեմ"]
[]
["Ինչպիսի ջերմամեկուսիչ նյութ է օգտագործվելու?"]
[]
[null,"1. Ապակե մանրաթել",null,null,null,null,"2. Փրփրապոլիստերոլ",null,null,null,null,null,"3. Պոլիստերոլ"]
[]
[]
[null,"4. Ապակե բամբակ",null,null,null,null,"5. Հանքային բամբակ",null,null,null,null,null,"6. Պեռլիտ"]
[]
[]
[null,"7. Այլ"]
[]
[]
["Արդյոք տանիքը և վերնահարկը ջերմամեկուսացվելու են?"]
[]
[null,null,"1. Այո",null,null,null,null,null,"2. Ոչ"]
[]
["Որքան է լինելու տանիքի և ձեղնահարկի  ջերմամեկուսացնող նյութի հաստությունը? "]
[]
[null,null,null,null,null,"[սմ]",null,null,"Չգիտեմ"]